bitfinex/quotes_ETHUSD_20241030
["timestamp","ask_amount","ask_price","bid_price","bid_amount"]
[1730271007382,3.75587,2662.5,2662.1,1.70819046]
[1730271014393,3.75573,2662.6,2662.1,1.70819046]
[1730271014722,3.75573,2662.6,2662.1,3.17235334]
[1730271014922,3.75573,2662.6,2662.1,6.92870334]
[1730271015288,3.75575,2662.6,2662.1,3.17235334]
[1730271016842,3.75575,2662.6,2662.1,6.92874334]
[1730271018717,7.67566,2662.7,2662.1,6.92874334]
[1730271018926,3.75581,2662.6,2662.1,6.92874334]
[1730271020007,3.75587,2662.5,2662.1,3.17235334]
[1730271023812,3.75587,2662.5,2662.1,1.70819046]
[1730271024024,3.75612,2662.4,2662.1,0.7801]
[1730271024298,3.75587,2662.5,2662.1,0.7801]
[1730271024299,3.75616,2662.3,2662.1,0.7801]
[1730271024906,7.51241,2662.3,2662.1,0.7301]
[1730271025111,7.51241,2662.3,2661.8,4.03649957]
[1730271025332,3.75616,2662.3,2661.8,4.03649957]
[1730271027601,3.75671,2661.9,2661.8,0.27966957]
[1730271027805,3.75671,2661.9,2661.5,3.21523816]
[1730271027806,3.75702,2661.7,2661.5,3.21523816]
[1730271027989,3.75713,2661.6,2661.5,3.21523816]
[1730271028526,5.98679288,2661.6,2661.5,3.21523816]
[1730271028696,6.96217417,2661.6,2661.5,3.21523816]
[1730271032591,6.96217417,2661.6,2661.5,3.16523816]
[1730271034611,5.49801129,2661.6,2661.5,3.16523816]
[1730271035207,3.75702,2661.7,2661.5,3.16523816]
[1730271035415,3.75713,2661.6,2661.5,3.16523816]
[1730271041325,3.75702,2661.7,2661.5,3.16523816]
[1730271041531,1.46416288,2661.6,2661.5,3.16523816]
[1730271042800,3.75713,2661.6,2661.5,3.16523816]
[1730271043007,4.73504129,2661.6,2661.5,3.16523816]
[1730271048148,0.97791129,2661.6,2661.5,3.16523816]
[1730271048323,4.73504129,2661.6,2661.5,3.16523816]
[1730271048765,0.97791129,2661.6,2661.5,3.16523816]
[1730271049066,3.75702,2661.7,2661.5,3.16523816]
[1730271049670,3.75713,2661.6,2661.5,3.16523816]
[1730271049837,3.75702,2661.7,2661.5,3.16523816]
[1730271050038,3.75713,2661.6,2661.5,3.16523816]
[1730271050750,3.75702,2661.7,2661.5,3.16523816]
[1730271051100,4.604802,2661.7,2661.5,3.16523816]
[1730271051281,8.361902,2661.7,2661.5,3.16523816]
[1730271051638,3.92,2661.9,2661.5,3.16523816]
[1730271051639,7.67679,2661.9,2661.5,3.16523816]
[1730271051838,3.75686,2661.8,2661.5,3.16523816]
[1730271054150,3.92,2661.9,2661.5,3.16523816]
[1730271054380,7.67678,2661.9,2661.5,3.16523816]
[1730271054580,3.75685,2661.8,2661.5,3.16523816]
[1730271055885,9.659488,2661.9,2661.5,3.16523816]
[1730271056093,7.67671,2661.9,2661.5,3.16523816]
[1730271060712,3.92,2661.9,2661.5,3.16523816]
[1730271060992,3.92,2661.9,2661.5,6.92250816]
[1730271061787,3.92,2661.9,2661.5,3.16523816]
[1730271062389,3.92,2661.9,2661.5,6.92250816]
[1730271063887,7.67678,2661.9,2661.5,3.16523816]
[1730271064088,1.223175,2661.8,2661.5,3.16523816]
[1730271066386,3.92,2661.9,2661.5,3.16523816]
[1730271067259,7.67674,2661.9,2661.5,3.16523816]
[1730271068294,7.67674,2661.9,2661.5,3.44617009]
[1730271068468,11.43354,2661.9,2661.5,3.16523816]
[1730271068666,1.223184,2661.8,2661.5,3.16523816]
[1730271069261,1.223184,2661.8,2661.5,3.44625657]
[1730271070389,1.223184,2661.8,2661.5,3.16523816]
[1730271070592,1.223184,2661.8,2661.5,3.44632856]
[1730271071143,1.223184,2661.8,2661.5,3.16523816]
[1730271071339,1.223184,2661.8,2661.6,0.28108936]
[1730271071482,1.223184,2661.8,2661.5,3.16523816]
[1730271071818,4.980054,2661.8,2661.5,3.16523816]
[1730271072018,1.223184,2661.8,2661.5,3.16523816]
[1730271072318,1.223184,2661.8,2661.6,0.28116498]
[1730271072518,1.223184,2661.8,2661.5,3.16523816]
[1730271072696,7.67674,2661.9,2661.6,0.28125316]
[1730271073018,7.67674,2661.9,2661.5,3.16523816]
[1730271073214,7.67674,2661.9,2661.6,0.28125524]
[1730271073419,7.67674,2661.9,2661.7,0.28125524]
[1730271073624,7.67674,2661.9,2661.5,3.61510149]
[1730271073783,7.67674,2661.9,2661.6,0.28135792]
[1730271074117,7.67674,2661.9,2661.7,0.28135792]
[1730271074118,0.847504,2661.8,2661.7,0.28135792]
[1730271074524,0.847504,2661.8,2661.5,3.16523816]
[1730271074722,7.67674,2661.9,2661.7,0.28135402]
[1730271074940,7.67674,2661.9,2661.5,3.16523816]
[1730271075448,7.67674,2661.9,2661.6,0.28135402]
[1730271075755,7.67674,2661.9,2661.7,0.28135402]
[1730271075912,7.67674,2661.9,2661.5,3.6154046]
[1730271076114,7.67674,2661.9,2661.6,0.28137422]
[1730271076308,9.04631229,2661.9,2661.7,0.28137422]
[1730271076540,9.04631229,2661.9,2661.5,3.6154046]
[1730271076719,3.75693,2661.8,2661.6,0.28138755]
[1730271076920,9.04631229,2661.9,2661.5,3.6154046]
[1730271076921,9.04631229,2661.9,2661.5,3.16523816]
[1730271077149,4.74141123,2661.8,2661.6,0.28141046]
[1730271077347,4.74141123,2661.8,2661.5,3.16523816]
[1730271077651,4.74141123,2661.8,2661.6,0.28142999]
[1730271077854,4.74141123,2661.8,2661.5,3.16523816]
[1730271078055,4.74141123,2661.8,2661.6,0.28142953]
[1730271078350,0.86614112,2661.7,2661.5,3.16523816]
[1730271078644,4.62313112,2661.7,2661.6,0.28145165]
[1730271079458,0.86614112,2661.7,2661.6,0.28145165]
[1730271080046,4.62313112,2661.7,2661.6,0.28145165]
[1730271081448,0.86614112,2661.7,2661.6,0.28145165]
[1730271081850,0.86614112,2661.7,2661.5,3.16523816]
[1730271082050,4.62313112,2661.7,2661.6,0.28151494]
[1730271083363,0.86614112,2661.7,2661.6,0.28151494]
[1730271083522,3.75686,2661.8,2661.6,0.28151494]
[1730271083716,3.75686,2661.8,2661.5,3.16523816]
[1730271083952,3.75686,2661.8,2661.6,0.28153724]
[1730271084164,3.75686,2661.8,2661.5,3.16523816]
[1730271084333,3.75686,2661.8,2661.6,0.28154006]
[1730271084659,4.980052,2661.8,2661.5,3.16523816]
[1730271084879,4.980052,2661.8,2661.6,0.28153755]
[1730271085090,4.980052,2661.8,2661.5,3.16523816]
[1730271085225,4.980052,2661.8,2661.6,0.28154482]
[1730271085423,4.980052,2661.8,2661.5,3.16523816]
[1730271085866,4.980052,2661.8,2661.6,0.28154511]
[1730271086167,4.980052,2661.8,2661.7,0.28154178]
[1730271086497,3.757,2661.7,2661.5,3.16523816]
[1730271086626,3.757,2661.7,2661.6,0.28156089]
[1730271088164,1.223192,2661.8,2661.6,0.28156089]
[1730271088326,1.223192,2661.8,2661.7,0.28157569]
[1730271088327,4.980072,2661.8,2661.7,0.28157569]
[1730271089069,1.223192,2661.8,2661.5,3.90303816]
[1730271089250,7.67672,2661.9,2661.7,0.28157113]
[1730271089421,7.67672,2661.9,2661.6,4.03869113]
[1730271089422,3.92,2661.9,2661.6,4.03869113]
[1730271089766,3.92,2661.9,2661.7,0.73208538]
[1730271090063,3.92,2661.9,2661.8,1.4698677]
[1730271090420,3.92,2661.9,2661.8,2.13897276]
[1730271090421,3.0743666,2661.9,2661.8,2.13897276]
[1730271093131,3.0743666,2661.9,2661.8,2.13876907]
[1730271093326,3.0743666,2661.9,2661.8,1.01928616]
[1730271093557,3.0743666,2661.9,2661.8,1.46966401]
[1730271094143,3.0743666,2661.9,2661.8,1.01928616]
[1730271094355,3.0743666,2661.9,2661.8,1.46966401]
[1730271094556,3.0743666,2661.9,2661.8,1.01928616]
[1730271094866,3.0743666,2661.9,2661.8,1.46966401]
[1730271095156,3.0743666,2661.9,2661.8,1.01928616]
[1730271095338,3.0743666,2661.9,2661.8,1.46966401]
[1730271095536,3.0743666,2661.9,2661.8,1.01928616]
[1730271095847,3.0743666,2661.9,2661.8,1.46966401]
[1730271097876,3.0743666,2661.9,2661.8,1.01928616]
[1730271098101,3.0743666,2661.9,2661.8,1.46966401]
[1730271100368,3.0743666,2661.9,2661.8,0.7378]
[1730271101060,3.0743666,2661.9,2661.8,5.22625648]
[1730271101250,3.0743666,2661.9,2661.8,5.67436476]
[1730271101573,3.0743666,2661.9,2661.8,6.12458413]
[1730271101769,3.0743666,2661.9,2661.8,5.67436476]
[1730271102076,3.0743666,2661.9,2661.8,6.12458413]
[1730271102278,3.0743666,2661.9,2661.8,5.67436476]
[1730271102451,3.0743666,2661.9,2661.8,6.12458413]
[1730271105481,2.22882914,2661.9,2661.8,6.12458413]
[1730271106588,2.22882914,2661.9,2661.8,9.12458413]
[1730271106769,0.8176,2662.7,2662.3,3.75608]
[1730271106946,7.93319,2662.7,2662.2,4.49408]
[1730271107283,7.93319,2662.7,2662.3,0.28101614]
[1730271107438,4.1776,2662.7,2662.3,0.28090774]
[1730271107646,4.1776,2662.7,2662.3,3.75612]
[1730271108481,4.1776,2662.7,2662.3,4.03691822]
[1730271109389,7.93321,2662.7,2662.3,0.28079822]
[1730271110245,4.1776,2662.7,2662.2,11.45552816]
[1730271110580,4.1776,2662.7,2662.2,12.74749726]
[1730271110944,4.1776,2662.7,2662.2,8.99121726]
[1730271111249,4.1776,2662.7,2662.2,12.74743726]
[1730271111578,4.1776,2662.7,2662.2,8.99121726]
[1730271111946,4.1776,2662.7,2662.2,12.74742726]
[1730271112172,4.1776,2662.7,2662.3,1.42115901]
[1730271112469,4.1776,2662.7,2662.3,5.17722901]
[1730271114012,4.1776,2662.7,2662.3,1.42115901]
[1730271114179,4.1776,2662.7,2662.4,3.75593]
[1730271117120,4.1776,2662.7,2662.4,3.7559]
[1730271117424,4.1776,2662.7,2662.4,5.04352872]
[1730271117575,3.36,2662.7,2662.6,3.75572]
[1730271118508,3.36,2662.7,2662.4,5.04359872]
[1730271118677,3.36,2662.7,2662.4,8.79951872]
[1730271118878,3.36,2662.7,2662.4,5.04354872]
[1730271119186,4.1776,2662.7,2662.4,5.04354872]
[1730271119576,4.1776,2662.7,2662.4,8.79944872]
[1730271119782,4.1776,2662.7,2662.5,1.02636116]
[1730271120988,4.1776,2662.7,2662.3,1.46416288]
[1730271121177,4.1776,2662.7,2662.3,4.03649173]
[1730271121379,4.1776,2662.7,2662.3,3.75601]
[1730271122414,4.1776,2662.7,2662.3,7.51204]
[1730271122614,4.1776,2662.7,2662.3,3.75601]
[1730271122787,4.1776,2662.7,2662.4,3.75598]
[1730271125491,3.36,2662.7,2662.6,2.20196288]
[1730271126008,3.36,2662.7,2662.6,6.23797963]
[1730271126209,3.36,2662.7,2662.6,1.01809675]
[1730271126518,4.176,2662.7,2662.5,0.28029675]
[1730271126727,4.176,2662.7,2662.2,7.24170094]
[1730271126884,4.176,2662.7,2662.3,3.75608]
[1730271127290,7.9316,2662.7,2662.3,0.28036684]
[1730271127510,7.9316,2662.7,2662.3,0.28037279]
[1730271127727,4.176,2662.7,2662.3,4.31684677]
[1730271128391,4.176,2662.7,2662.3,4.03647398]
[1730271128593,4.176,2662.7,2662.3,4.03640398]
[1730271128826,7.93159,2662.7,2662.3,4.03640398]
[1730271129230,4.176,2662.7,2662.3,4.03640398]
[1730271129399,4.176,2662.7,2662.3,4.31681405]
[1730271129598,4.176,2662.7,2662.3,4.31678385]
[1730271129815,4.176,2662.7,2662.3,4.03640398]
[1730271130429,7.93159,2662.7,2662.3,0.56070857]
[1730271131515,4.176,2662.7,2662.3,4.31682857]
[1730271131833,7.93159,2662.7,2662.3,0.28034398]
[1730271132291,7.93159,2662.7,2662.3,0.56083792]
[1730271134330,7.93159,2662.7,2662.3,4.31697792]
[1730271134494,7.93159,2662.7,2662.3,4.03648398]
[1730271134694,7.93159,2662.7,2662.3,4.0369082]
[1730271136326,7.93159,2662.7,2662.3,0.2807682]
[1730271136719,4.176,2662.7,2662.3,4.0368982]
[1730271138529,4.176,2662.7,2662.3,4.03700515]
[1730271139097,4.176,2662.7,2662.4,0.28087515]
[1730271140035,4.176,2662.7,2662.3,4.03700515]
[1730271140252,7.11566,2662.7,2662.4,0.28087515]
[1730271140548,0.816,2662.6,2662.3,0.28087515]
[1730271141505,3.756,2662.4,2662.3,0.28087515]
[1730271141709,3.756,2662.4,2662.2,3.20523816]
[1730271141710,4.572,2662.4,2662.2,3.20523816]
[1730271142108,0.816,2662.4,2662.2,3.20523816]
[1730271143006,0.816,2662.4,2662.2,3.48625429]
[1730271144200,0.816,2662.4,2662.2,3.20523816]
[1730271145230,3.75615,2662.3,2662.2,3.20523816]
[1730271146004,3.75615,2662.3,2662.2,3.4863873]
[1730271146542,4.57203,2662.4,2662.2,3.4863873]
[1730271146698,4.57203,2662.4,2662.2,3.20523816]
[1730271147948,3.75603,2662.4,2662.2,3.20523816]
[1730271148148,6.03631288,2662.3,2662.2,3.20523816]
[1730271148439,6.04631288,2662.3,2662.2,3.20523816]
[1730271148640,0.816,2661.8,2661.7,0.28126895]
[1730271148816,3.75716,2661.6,2661.4,0.44983824]
[1730271149136,3.75716,2661.6,2661.0,1.91802341]
[1730271149137,4.57316,2661.6,2661.5,0.28129579]
[1730271149323,4.57316,2661.6,2661.1,5.22189288]
[1730271149324,4.57316,2661.6,2661.3,0.28129579]
[1730271149537,4.57316,2661.6,2661.4,0.28129579]
[1730271149747,4.57316,2661.6,2661.1,5.67173112]
[1730271150054,4.57316,2661.6,2661.2,0.28119461]
[1730271150241,4.57316,2661.6,2661.1,6.23864999]
[1730271150554,4.57316,2661.6,2661.2,0.28119473]
[1730271150758,4.57316,2661.6,2661.3,0.28119473]
[1730271150916,4.57316,2661.6,2661.4,0.28119473]
[1730271151123,4.57316,2661.6,2661.2,0.28119473]
[1730271151322,4.57316,2661.6,2661.3,0.28119473]
[1730271151522,4.57316,2661.6,2661.2,0.28119473]
[1730271151752,4.57316,2661.6,2661.3,0.28119473]
[1730271151967,4.57316,2661.6,2661.2,0.28119473]
[1730271153764,4.57316,2661.6,2661.1,5.22189288]
[1730271153925,4.57316,2661.6,2661.2,0.28079551]
[1730271154462,4.57316,2661.6,2661.1,8.97966288]
[1730271154660,0.816,2661.6,2661.1,9.95140917]
[1730271154956,0.816,2661.6,2661.2,4.03839955]
[1730271155327,0.816,2661.6,2661.2,3.75769]
[1730271156162,0.816,2661.6,2661.2,4.03832638]
[1730271156461,0.816,2661.6,2661.2,3.75769]
[1730271156867,3.75691,2661.8,2661.1,6.19363917]
[1730271157163,4.1548,2661.9,2661.6,7.51412]
[1730271157375,3.36,2661.9,2661.7,5.22108288]
[1730271158465,3.36,2661.9,2661.8,4.49465]
[1730271158640,3.36,2661.9,2661.8,5.46623729]
[1730271163477,3.36,2661.9,2661.8,8.46623729]
[1730271163640,3.36,2661.9,2661.8,8.7467179]
[1730271164746,3.36,2661.9,2661.8,9.19549025]
[1730271164972,3.36,2661.9,2661.8,8.7467179]
[1730271165144,3.36,2661.9,2661.8,9.19547926]
[1730271165745,3.36,2661.9,2661.8,8.7467179]
[1730271165970,3.36,2661.9,2661.8,9.19550568]
[1730271166274,3.36,2661.9,2661.8,9.19552807]
[1730271166983,3.36,2661.9,2661.8,8.45772807]
[1730271167167,3.36,2661.9,2661.8,1.74464349]
[1730271167487,3.36,2661.9,2661.8,5.50149349]
[1730271168157,3.36,2661.9,2661.8,5.22101288]
[1730271168649,3.36,2661.9,2661.8,5.50155166]
[1730271170972,3.36,2661.9,2661.8,5.22101288]
[1730271171281,3.36,2661.9,2661.8,5.50161384]
[1730271172059,3.36,2661.9,2661.8,5.22101288]
[1730271172261,3.36,2661.9,2661.8,5.50161188]
[1730271172987,3.36,2661.9,2661.8,1.74476188]
[1730271173284,3.36,2661.9,2661.8,5.50161188]
[1730271175694,3.36,2661.9,2661.8,5.5017177]
[1730271177288,3.36,2661.9,2661.8,1.7448677]
[1730271178370,3.36,2661.9,2661.8,5.5017177]
[1730271178896,3.36,2661.9,2661.8,1.7448677]
[1730271181003,4.151,2661.9,2661.8,1.46416288]
[1730271181293,4.487,2661.9,2661.8,1.46416288]
[1730271181683,8.24371,2661.9,2661.8,1.46416288]
[1730271181878,0.791,2661.8,2661.6,1.46416288]
[1730271182275,0.791,2661.7,2661.6,1.46416288]
[1730271182474,0.791,2661.5,2661.3,3.75755]
[1730271182658,0.791,2661.5,2661.4,1.46416288]
[1730271186677,0.791,2661.7,2661.4,1.46416288]
[1730271186877,0.791,2661.7,2661.6,1.46416288]
[1730271193975,4.54799,2661.7,2661.6,1.46416288]
[1730271194178,5.714483,2661.7,2661.6,1.46416288]
[1730271194502,5.714483,2661.7,2661.4,1.46416288]
[1730271194503,0.791,2661.5,2661.4,1.46416288]
[1730271196483,0.791,2661.5,2661.3,0.28096607]
[1730271196688,0.791,2661.5,2661.4,1.46416288]
[1730271198505,3.75699,2661.7,2661.4,1.46416288]
[1730271198506,4.54799,2661.7,2661.4,1.74512895]
[1730271198807,4.54799,2661.7,2661.6,1.46416288]
[1730271198973,5.714465,2661.7,2661.6,1.46416288]
[1730271204777,3.75727,2661.5,2661.4,1.46416288]
[1730271206818,0.791,2661.4,2661.0,0.28097665]
[1730271206982,3.75764,2661.3,2661.2,1.46416288]
[1730271208015,1.245827,2661.4,2661.2,1.46416288]
[1730271208220,0.791,2661.4,2661.2,1.46416288]
[1730271219017,4.54842,2661.4,2661.2,1.46416288]
[1730271219217,4.54842,2661.4,2661.0,0.28093194]
[1730271219420,4.54842,2661.4,2661.3,1.46416288]
[1730271223515,4.54842,2661.4,2660.9,4.20754078]
[1730271223712,4.54842,2661.4,2661.3,1.46416288]
[1730271224329,4.54842,2661.4,2661.3,1.74547833]
[1730271227108,4.54842,2661.4,2661.3,1.46416288]
[1730271227299,4.54842,2661.4,2661.3,1.74555578]
[1730271230734,4.54842,2661.4,2661.3,1.46416288]
[1730271230920,4.54842,2661.4,2661.3,1.74559478]
[1730271230921,3.75742,2661.4,2661.3,1.74559478]
[1730271233145,4.590487,2661.4,2661.3,1.74559478]
[1730271236461,3.75742,2661.4,2661.3,1.74559478]
[1730271238421,3.75742,2661.4,2661.3,1.74569729]
[1730271241021,3.75742,2661.4,2661.3,1.74573862]
[1730271243948,3.75742,2661.4,2661.3,2.19630738]
[1730271244149,3.75742,2661.4,2661.3,2.19637463]
[1730271244661,3.75729,2661.5,2661.3,2.19637463]
[1730271244845,3.75729,2661.5,2661.4,0.2816199]
[1730271245046,4.7069925,2661.5,2661.4,0.2816199]
[1730271247266,3.75742,2661.4,2661.3,1.46416288]
[1730271247626,3.75742,2661.4,2661.3,2.196669]
[1730271248072,3.75742,2661.4,2661.3,1.46416288]
[1730271248240,8.762475,2661.7,2661.3,2.93447487]
[1730271248241,7.596,2661.7,2661.3,2.93447487]
[1730271248445,11.353,2661.7,2661.6,1.46416288]
[1730271248763,13.198295,2661.7,2661.6,1.46416288]
[1730271248940,13.198295,2661.7,2661.6,1.74589826]
[1730271251471,13.198295,2661.7,2661.6,1.46416288]
[1730271251774,13.198295,2661.7,2661.6,1.74599118]
[1730271253630,13.198295,2661.7,2661.6,0.2818283]
[1730271254463,13.198295,2661.7,2661.4,1.46416288]
[1730271254801,3.75724,2661.6,2661.5,0.28180405]
[1730271255878,3.75724,2661.6,2661.5,0.73268019]
[1730271256052,3.75724,2661.6,2661.5,0.28180405]
[1730271256488,3.75724,2661.6,2661.5,0.73267974]
[1730271258281,3.75724,2661.6,2661.5,0.28180405]
[1730271258585,3.75724,2661.6,2661.5,0.73263729]
[1730271258951,3.75724,2661.6,2661.5,0.73261828]
[1730271259348,5.4527935,2661.6,2661.5,0.73261004]
[1730271259553,6.2599935,2661.6,2661.5,0.28177626]
[1730271262658,6.2599935,2661.6,2661.5,0.28177197]
[1730271264274,4.56444,2661.6,2661.5,0.28177197]
[1730271265196,3.75724,2661.6,2661.5,0.28177197]
[1730271266303,3.75724,2661.6,2661.5,0.73261245]
[1730271266467,3.75724,2661.6,2661.5,0.73261149]
[1730271267096,3.75724,2661.6,2661.5,0.28177197]
[1730271268779,3.75724,2661.6,2661.5,0.73261235]
[1730271272114,3.75724,2661.6,2661.5,0.73258564]
[1730271272710,3.75724,2661.6,2661.5,0.28177197]
[1730271273309,3.75724,2661.6,2661.5,0.73257861]
[1730271273513,3.75727,2661.5,2661.4,2.20196288]
[1730271274013,3.75727,2661.5,2661.4,2.93453194]
[1730271276428,2.91146742,2661.5,2661.4,2.93453194]
[1730271277222,2.91146742,2661.5,2661.4,2.19673194]
[1730271277426,5.14792916,2661.5,2661.4,0.73256906]
[1730271277629,8.69792916,2661.5,2661.4,0.28175733]
[1730271277799,4.56798,2661.0,2660.9,4.36927066]
[1730271278123,13.372333,2661.0,2660.9,4.36927066]
[1730271280290,13.372333,2661.0,2660.9,1.18340001]
[1730271280486,13.372333,2661.0,2660.6,1.46416288]
[1730271280722,3.7584,2660.7,2660.6,1.46416288]
[1730271281091,4.5684,2660.7,2660.6,1.46416288]
[1730271283408,5.401068,2660.7,2660.6,1.46416288]
[1730271283806,5.401068,2660.7,2660.3,1.46416288]
[1730271283807,3.75892,2660.4,2660.3,1.46416288]
[1730271284430,3.75892,2660.4,2660.0,0.7378]
[1730271284599,3.75892,2660.4,2660.3,1.46416288]
[1730271286201,3.75892,2660.4,2660.0,0.7378]
[1730271286408,3.75892,2660.4,2660.3,1.46416288]
[1730271291111,5.12745826,2660.4,2660.3,1.46416288]
[1730271301202,3.75914,2660.2,2660.1,1.46416288]
[1730271302119,3.75955,2659.9,2659.7,0.7378]
[1730271302352,3.75955,2659.9,2659.8,1.46416288]
[1730271303204,0.8182,2659.8,2659.4,3.17292959]
[1730271303406,3.7601,2659.5,2659.4,3.17292959]
[1730271304017,4.5783,2659.5,2659.4,3.17292959]
[1730271304227,0.8182,2658.6,2658.4,0.1297735]
[1730271304524,3.76151,2658.5,2658.4,0.1297735]
[1730271306959,6.76151,2658.5,2658.4,0.1297735]
[1730271307159,7.57971,2658.5,2658.4,0.1297735]
[1730271308527,7.58971,2658.5,2658.4,0.1297735]
[1730271308726,8.62005174,2658.5,2658.4,0.1297735]
[1730271309070,14.71738,2658.6,2658.4,1.59393638]
[1730271309761,10.956,2658.6,2658.4,1.59393638]
[1730271310439,10.956,2658.6,2658.4,5.35555638]
[1730271310827,10.956,2658.6,2658.4,0.1297735]
[1730271311033,10.956,2658.6,2658.5,1.46416288]
[1730271312526,10.956,2658.6,2658.4,0.1297735]
[1730271314129,16.18698,2658.6,2658.4,0.1297735]
[1730271314629,12.4256,2658.6,2658.4,0.1297735]
[1730271315873,10.956,2658.6,2658.4,0.1297735]
[1730271316367,10.956,2658.6,2658.4,4.6291735]
[1730271316987,3.36,2658.6,2658.5,3.76151]
[1730271317145,3.36,2658.6,2658.5,7.0400838]
[1730271320355,3.36,2658.6,2658.5,7.7778838]
[1730271320556,3.36,2658.6,2658.5,8.94481453]
[1730271321065,0.7817,2659.6,2659.1,3.76059]
[1730271321302,3.36,2659.5,2659.1,3.76059]
[1730271321686,3.36,2659.5,2659.1,4.49839]
[1730271322367,7.12013,2659.5,2659.1,0.7378]
[1730271322573,7.12023,2659.5,2659.1,0.7378]
[1730271322781,3.76028,2659.4,2658.9,3.76087]
[1730271323015,3.76055,2659.2,2658.8,4.0163738]
[1730271324005,3.76028,2659.4,2658.9,3.76095]
[1730271324572,3.76039,2659.3,2658.8,4.0163738]
[1730271325314,3.76039,2659.3,2658.8,7.7774638]
[1730271325775,7.52064,2659.4,2658.9,3.76091]
[1730271326155,3.76028,2659.4,2658.9,7.52182]
[1730271326312,3.76028,2659.4,2658.9,3.76091]
[1730271326466,3.76028,2659.4,2658.9,3.76086]
[1730271327111,3.76028,2659.4,2658.9,7.52172]
[1730271327416,3.76028,2659.4,2658.9,3.76086]
[1730271327904,3.36,2659.5,2658.9,3.76085]
[1730271328066,3.36,2659.5,2659.1,7.0392038]
[1730271328268,3.36,2659.5,2659.2,3.76052]
[1730271328703,3.36,2659.5,2659.1,7.0391638]
[1730271330123,3.36,2659.5,2659.1,10.7997238]
[1730271330327,3.36,2659.5,2659.1,7.0391338]
[1730271334605,7.12012,2659.5,2659.2,1.46651306]
[1730271334803,4.92644,2659.4,2658.9,3.76085]
[1730271335136,4.92644,2659.4,2659.0,1.46651306]
[1730271338743,3.76038,2659.3,2659.0,1.46651306]
[1730271339257,4.92644,2659.4,2659.0,1.46651306]
[1730271340229,3.76039,2659.3,2659.0,1.46651306]
[1730271340425,4.92644,2659.4,2659.0,1.46651306]
[1730271340627,0.828644,2659.3,2658.8,0.7378]
[1730271340937,3.36,2659.5,2658.4,3.8913635]
[1730271340938,3.36,2659.5,2659.2,1.46651306]
[1730271341207,3.36,2659.5,2659.3,3.76038]
[1730271341452,3.36,2659.5,2659.4,5.22675306]
[1730271342516,3.36,2659.5,2659.4,1.46651306]
[1730271343359,4.1855,2659.5,2659.4,1.46651306]
[1730271345645,3.36,2659.5,2659.4,1.46651306]
[1730271345955,3.36,2659.5,2659.4,5.22675306]
[1730271347221,3.36,2659.5,2659.3,5.22681306]
[1730271347425,3.36,2659.5,2659.4,3.76024]
[1730271348054,3.36,2659.5,2659.3,5.96461306]
[1730271348559,3.36,2659.5,2659.3,9.72491306]
[1730271348734,3.36,2659.5,2659.3,5.96461306]
[1730271350272,3.36,2659.5,2659.2,3.76052]
[1730271350478,3.36,2659.5,2659.2,5.22695306]
[1730271350634,3.36,2659.5,2659.2,1.46651306]
[1730271350830,7.907291,2659.5,2659.2,1.46651306]
[1730271353074,0.7516,2659.4,2659.2,1.46651306]
[1730271353756,0.7516,2659.4,2658.9,0.7378]
[1730271353962,0.7516,2659.4,2659.2,1.46651306]
[1730271354161,1.6174891,2659.4,2659.2,1.46651306]
[1730271354462,1.6174891,2659.4,2659.1,1.46651306]
[1730271354660,3.76038,2659.3,2659.1,1.46651306]
[1730271355671,1.6174891,2659.4,2659.1,1.46651306]
[1730271355837,5.3777991,2659.4,2659.1,1.46651306]
[1730271359143,1.6174891,2659.4,2659.3,1.46651306]
[1730271359507,5.3777291,2659.4,2659.3,1.46651306]
[1730271361737,0.8658891,2659.4,2659.3,1.46651306]
[1730271361941,3.36,2659.5,2659.3,1.46651306]
[1730271362813,3.36,2659.5,2659.3,5.22688306]
[1730271363031,3.36,2659.5,2659.4,4.04177258]
[1730271364355,3.36,2659.5,2659.4,0.28153258]
[1730271365959,3.36,2659.5,2659.3,5.22682306]
[1730271366117,3.36,2659.5,2659.4,0.28159849]
[1730271366314,8.584886,2659.5,2659.4,0.28159849]
[1730271366518,0.7528,2659.3,2658.5,1.91707065]
[1730271366718,3.76133,2658.7,2658.5,1.46651306]
[1730271366930,3.36,2658.7,2658.5,1.46651306]
[1730271367353,7.12128,2658.7,2658.5,1.46651306]
[1730271367931,7.87408,2658.7,2658.5,1.46651306]
[1730271368159,4.1128,2658.7,2658.5,1.46651306]
[1730271368565,4.1128,2658.7,2658.4,0.1297735]
[1730271368966,7.87403,2658.7,2658.4,0.1297735]
[1730271369144,3.76138,2658.6,2658.4,0.1297735]
[1730271369468,4.1128,2658.7,2658.4,0.1297735]
[1730271369469,3.76151,2658.5,2658.4,0.1297735]
[1730271369777,4.1128,2658.7,2658.4,0.1297735]
[1730271369970,3.76141,2658.6,2658.4,0.1297735]
[1730271371320,3.76151,2658.5,2658.4,0.1297735]
[1730271372231,3.76138,2658.6,2658.4,0.1297735]
[1730271372669,4.900199,2658.7,2658.4,0.1297735]
[1730271373249,8.661459,2658.7,2658.4,0.1297735]
[1730271373670,3.36,2658.7,2658.4,0.1297735]
[1730271374547,7.12124,2658.7,2658.4,0.1297735]
[1730271377108,3.36,2658.7,2658.4,0.1297735]
[1730271377265,3.36,2658.7,2658.4,3.8914235]
[1730271380510,7.12131,2658.7,2658.4,0.1297735]
[1730271380693,7.908694,2658.7,2658.4,0.1297735]
[1730271381203,3.76139,2658.6,2658.4,0.1297735]
[1730271381613,7.5229,2658.6,2658.4,0.1297735]
[1730271381782,0.7528,2658.5,2658.4,0.1297735]
[1730271382409,5.3804674,2658.5,2658.4,0.1297735]
[1730271382708,1.6189574,2658.5,2658.4,0.1297735]
[1730271383269,0.7528,2658.5,2658.4,0.1297735]
[1730271392414,7.12128,2658.7,2658.4,0.1297735]
[1730271394603,7.12128,2658.7,2658.4,1.59716756]
[1730271394604,3.36,2658.7,2658.4,1.59716756]
[1730271395231,7.12127,2658.7,2658.4,1.59716756]
[1730271395922,3.36,2658.7,2658.6,1.46739406]
[1730271401354,7.908807,2658.7,2658.6,1.46739406]